bitfinex-derivatives/quotes_SOLF0:USTF0_20250716
["timestamp","ask_amount","ask_price","bid_price","bid_amount"]
[1752690117971,8.8393,174.45,174.44,3.11]
[1752690118177,3.11,174.45,174.44,3.11]
[1752690118372,5.0,174.5,174.44,3.11]
[1752690118580,3.11,174.48,174.46,6.13037996]
[1752690118778,3.11,174.48,174.47,3.11]
[1752690118983,3.11,174.48,174.46,4.13620138]
[1752690119173,3.11,174.48,174.46,7.24620138]
[1752690119174,8.8381,174.48,174.46,7.24620138]
[1752690119374,3.11,174.48,174.47,3.11]
[1752690119577,5.0,174.5,174.47,3.11]
[1752690119881,8.8378,174.49,174.48,7.24620138]
[1752690120076,5.0,174.5,174.48,7.24620138]
[1752690120376,8.11,174.5,174.49,3.11]
[1752690120874,3.11,174.53,174.49,3.11]
[1752690121075,3.11,174.53,174.52,3.11]
[1752690121280,8.8368,174.52,174.51,6.1237116]
[1752690121475,8.8368,174.52,174.51,9.2337116]
[1752690122076,8.8368,174.52,174.51,6.1237116]
[1752690122278,8.8368,174.52,174.49,3.11]
[1752690122480,8.8368,174.52,174.51,6.1237116]
[1752690122786,3.11,174.52,174.51,9.2337116]
[1752690123281,3.11,174.52,174.49,9.2337116]
[1752690123487,3.11,174.51,174.49,9.2337116]
[1752690123784,3.11,174.51,174.5,3.11]
[1752690125383,3.11,174.58,174.5,9.2337116]
[1752690125579,17.5685116,174.66,174.56,9.2337116]
[1752690125580,3.11,174.57,174.56,9.2337116]
[1752690126289,183.84,174.65,174.58,3.11]
[1752690126477,3.11,174.61,174.6,3.11]
[1752690126679,183.84,174.65,174.59,6.1237116]
[1752690126876,3.11,174.6,174.59,9.2337116]
[1752690127783,3.11,174.6,174.59,6.1237116]
[1752690128087,8.8342,174.6,174.59,6.1237116]
[1752690128286,3.11,174.6,174.56,6.1237116]
[1752690128489,3.11,174.58,174.57,3.11]
[1752690129180,3.11,174.64,174.57,3.11]
[1752690129376,3.11,174.63,174.58,6.1237116]
[1752690129681,183.84,174.65,174.59,3.11]
[1752690129882,3.11,174.6,174.59,3.11]
[1752690130288,8.8342,174.6,174.59,3.11]
[1752690130988,3.11,174.59,174.58,9.2337116]
[1752690131890,3.11,174.6,174.59,3.11]
[1752690132194,3.11,174.64,174.59,3.11]
[1752690132491,183.84,174.65,174.61,3.11]
[1752690132492,3.11,174.62,174.61,3.11]
[1752690132884,3.11,174.64,174.6,6.1237116]
[1752690133079,5.0,174.65,174.62,9.2337116]
[1752690133080,3.11,174.63,174.62,9.2337116]
[1752690133385,8.8332,174.63,174.62,9.2337116]
[1752690133786,5.0,174.65,174.62,9.2337116]
[1752690133787,5.0,174.65,174.64,3.11]
[1752690133983,5.0,174.65,174.64,9.2337116]
[1752690134178,8.11,174.65,174.64,6.1237116]
[1752690134781,3.11,174.64,174.61,6.1237116]
[1752690135086,5.0,174.65,174.61,9.2337116]
[1752690135087,3.11,174.63,174.61,9.2337116]
[1752690135282,5.0,174.65,174.62,3.11]
[1752690135485,3.11,174.64,174.63,3.11]
[1752690136387,5.7233,174.63,174.61,6.1237116]
[1752690136590,3.11,174.62,174.56,3.11]
[1752690136796,3.33,174.64,174.6,3.12]
[1752690137293,9.0539,174.62,174.61,3.12]
[1752690138695,5.7242,174.6,174.59,6.1237116]
[1752690138890,3.33,174.64,174.57,9.2437116]
[1752690139596,9.0549,174.58,174.57,9.2437116]
[1752690139995,9.0549,174.58,174.55,6.1237116]
[1752690140294,9.0552,174.57,174.56,3.12]
[1752690141090,3.33,174.57,174.56,3.12]
[1752690141394,3.33,174.6,174.53,6.1237116]
[1752690141689,5.0,174.65,174.59,6.1237116]
[1752690141690,3.33,174.62,174.59,6.1237116]
[1752690141894,3.33,174.62,174.6,3.12]
[1752690142093,3.33,174.62,174.61,3.12]
[1752690142794,3.33,174.64,174.59,3.12]
[1752690142991,3.33,174.64,174.57,7.25108459]
[1752690143389,5.7247,174.59,174.58,3.12]
[1752690143690,3.33,174.61,174.58,3.12]
[1752690143894,3.33,174.6,174.59,3.12]
[1752690144195,9.0544,174.6,174.59,3.12]
[1752690144698,5.0,174.65,174.59,4.13108459]
[1752690144893,9.054,174.61,174.6,3.12]
[1752690145094,3.33,174.6,174.59,7.25108459]
[1752690145298,5.7236,174.62,174.6,3.12]
[1752690145497,3.33,174.64,174.6,3.12]
[1752690145498,5.0,174.65,174.6,3.12]
[1752690145698,3.33,174.61,174.6,3.12]
[1752690145897,3.33,174.64,174.61,3.12]
[1752690146101,5.0,174.65,174.61,4.13108459]
[1752690146298,5.7239,174.61,174.57,5.7251]
[1752690146493,3.33,174.61,174.58,4.13108459]
[1752690146698,3.33,174.61,174.56,7.25108459]
[1752690146997,3.33,174.57,174.56,7.25108459]
[1752690147200,3.33,174.57,174.56,3.12]
[1752690147392,3.33,174.57,174.43,511.05157262]
[1752690147393,3.33,174.57,174.54,7.25108459]
[1752690147596,5.725,174.6,174.54,7.25108459]
[1752690147905,3.33,174.59,174.54,7.25108459]
[1752690148105,5.7258,174.55,174.54,7.25108459]
[1752690148300,9.0558,174.55,174.54,7.25108459]
[1752690148705,9.0558,174.55,174.54,3.12]
[1752690149005,5.7262,174.54,174.52,6.12325127]
[1752690149201,5.7262,174.54,174.53,3.12]
[1752690149399,3.33,174.55,174.53,3.12]
[1752690149601,9.0561,174.55,174.53,3.12]
[1752690150104,3.33,174.55,174.53,3.12]
[1752690150604,6.12325127,174.62,174.52,6.12325127]
[1752690150795,6.12325127,174.62,174.43,510.77157262]
[1752690150796,3.33,174.59,174.5,3.12]
[1752690151507,6.12325127,174.58,174.48,6.12325127]
[1752690151707,3.33,174.57,174.48,9.24325127]
[1752690151908,5.7277,174.5,174.48,9.24325127]
[1752690152110,3.33,174.51,174.49,3.12]
[1752690152511,5.7275,174.5,174.49,3.12]
[1752690153403,3.33,174.5,174.44,3.12]
[1752690153808,5.7282,174.48,174.46,6.12325127]
[1752690154004,9.0582,174.48,174.47,3.12]
[1752690154315,11.84825127,174.56,174.44,9.24325127]
[1752690154316,5.729,174.46,174.44,9.24325127]
[1752690154609,9.059,174.46,174.45,3.12]
[1752690155198,3.33,174.5,174.45,3.12]
[1752690155405,3.33,174.56,174.48,3.12]
[1752690155810,3.33,174.56,174.5,3.12]
[1752690156904,5.7267,174.53,174.5,3.12]
[1752690157100,3.33,174.59,174.52,3.12]
[1752690157911,3.33,174.53,174.52,3.12]
[1752690158501,6.12325127,174.6,174.49,6.12325127]
[1752690158706,3.33,174.59,174.51,6.12325127]
[1752690158903,5.7266,174.53,174.52,3.12]
[1752690159106,9.0566,174.53,174.52,3.12]
[1752690159807,5.7266,174.53,174.52,3.12]
[1752690160015,9.0566,174.53,174.52,3.12]
[1752690160209,5.7263,174.54,174.53,3.12]
[1752690160902,9.0563,174.54,174.53,3.12]
[1752690161718,3.33,174.57,174.51,6.12325127]
[1752690162110,5.7272,174.51,174.5,3.12]
[1752690163907,5.7275,174.5,174.49,6.12325127]
[1752690164107,3.33,174.51,174.49,9.24325127]
[1752690164412,3.33,174.57,174.5,3.12]
[1752690165206,5.7272,174.51,174.5,3.12]
[1752690165706,9.0572,174.51,174.5,3.12]
[1752690166513,9.0575,174.5,174.49,6.12325127]
[1752690166714,3.33,174.5,174.39,494.8]
[1752690166907,5.7284,174.48,174.46,3.29]
[1752690167106,5.7284,174.48,174.45,6.12325127]
[1752690167107,5.7284,174.48,174.47,3.29]
[1752690167814,5.7279,174.49,174.47,9.41325127]
[1752690168018,3.41,174.5,174.48,3.29]
[1752690168214,3.41,174.55,174.49,3.29]
[1752690168617,5.7275,174.5,174.49,3.29]
[1752690169014,5.7272,174.51,174.49,3.29]
[1752690169215,18.49084202,174.58,174.5,4.13525467]
[1752690169417,3.41,174.53,174.52,3.29]
[1752690169616,5.7265,174.53,174.52,7.42525467]
[1752690170622,9.1365,174.53,174.52,7.42525467]
[1752690170919,5.7265,174.53,174.52,7.42525467]
[1752690171626,12.76584202,174.58,174.52,7.42525467]
[1752690171627,3.41,174.57,174.54,3.29]
[1752690171820,3.41,174.56,174.54,7.42525467]
[1752690172041,12.76584202,174.6,174.54,7.42525467]
[1752690172218,3.41,174.59,174.54,7.42525467]
[1752690172413,5.7258,174.55,174.54,7.42525467]
[1752690173421,3.41,174.57,174.54,4.13525467]
[1752690173628,3.41,174.57,174.56,7.42525467]
[1752690174218,5.7253,174.57,174.56,7.42525467]
[1752690174422,3.41,174.57,174.52,3.29]
[1752690174821,3.41,174.52,174.51,3.29]
[1752690175521,5.7266,174.53,174.52,3.29]
[1752690175731,9.1366,174.53,174.52,7.42525467]
[1752690176423,5.7266,174.53,174.52,7.42525467]
[1752690176624,9.1366,174.53,174.52,3.29]
[1752690176827,4.13525467,174.6,174.53,3.29]
[1752690176828,9.1363,174.54,174.53,3.29]
[1752690178123,3.41,174.56,174.49,7.42525467]
[1752690178532,16.17584202,174.56,174.49,7.42525467]
[1752690178831,3.41,174.53,174.5,3.29]
[1752690179027,3.41,174.5,174.48,3.29]
[1752690179230,3.41,174.53,174.47,4.13525467]
[1752690179538,12.76584202,174.54,174.42,4.13525467]
[1752690179539,3.41,174.52,174.49,4.13525467]
[1752690180029,3.41,174.51,174.43,3.29]
[1752690180232,3.41,174.51,174.48,3.29]
[1752690180533,5.7275,174.5,174.48,3.29]
[1752690180726,3.41,174.51,174.48,3.29]
[1752690181031,12.76584202,174.54,174.42,4.13525467]
[1752690181032,5.7275,174.5,174.49,3.29]
[1752690181233,9.1375,174.5,174.49,3.29]
[1752690181833,3.41,174.52,174.47,7.42525467]
[1752690182132,3.41,174.51,174.45,4.13525467]
[1752690182627,3.41,174.51,174.47,3.29]
[1752690182926,9.1388,174.47,174.46,3.29]
[1752690183134,12.76584202,174.52,174.45,4.13525467]
[1752690183320,3.41,174.46,174.45,7.42525467]
[1752690183521,9.1388,174.46,174.45,7.42525467]
[1752690183724,3.41,174.51,174.45,7.42525467]
[1752690183930,3.41,174.51,174.45,4.13525467]
[1752690184332,9.1388,174.46,174.45,7.42525467]
[1752690184528,9.1388,174.46,174.45,3.29]
[1752690184728,5.7288,174.46,174.45,3.29]
[1752690185031,5.7285,174.47,174.46,3.29]
[1752690185228,3.41,174.48,174.46,3.29]
[1752690185533,3.41,174.48,174.47,3.29]
[1752690185735,9.1384,174.48,174.47,3.29]
[1752690186632,5.7288,174.46,174.45,4.13525467]
[1752690186831,3.41,174.47,174.46,3.29]
[1752690187330,9.1386,174.47,174.46,3.29]
[1752690189240,9.1392,174.45,174.43,4.13525467]
[1752690189531,9.1392,174.45,174.44,3.29]
[1752690190936,3.41,174.45,174.4,4.13525467]
[1752690191232,3.41,174.45,174.42,3.29]
[1752690191429,3.41,174.44,174.41,3.29]
[1752690191939,9.1397,174.44,174.41,3.29]
[1752690192242,5.7298,174.43,174.41,3.29]
[1752690192437,5.7298,174.43,174.42,3.29]
[1752690193036,5.7298,174.43,174.39,5.7309]
[1752690193241,3.41,174.43,174.4,4.13525467]
[1752690193442,3.41,174.41,174.22,2260.66]
[1752690193636,5.731,174.4,174.39,4.13525467]
[1752690193843,3.41,174.41,174.33,177.1]
[1752690194033,12.76584202,174.4,174.34,4.13525467]
[1752690194235,3.41,174.39,174.34,7.42525467]
[1752690194434,3.41,174.39,174.35,3.29]
[1752690194638,3.41,174.38,174.36,3.29]
[1752690194938,3.41,174.36,174.32,4.13525467]
[1752690195132,4.13525467,174.39,174.33,3.29]
[1752690195439,9.1427,174.34,174.33,3.29]
[1752690195837,5.7332,174.33,174.31,3.29]
[1752690196140,3.41,174.38,174.31,3.29]
[1752690196740,5.7331,174.33,174.3,4.13525467]
[1752690196942,9.0731,174.33,174.32,3.32]
[1752690197141,3.34,174.33,174.32,3.32]
[1752690198039,5.7329,174.34,174.32,3.32]
[1752690198344,3.34,174.34,174.33,3.32]
[1752690199042,3.34,174.39,174.33,3.32]
[1752690199640,9.0727,174.34,174.33,3.32]
[1752690200040,3.34,174.32,174.31,3.32]
[1752690200942,9.0734,174.32,174.31,3.32]
[1752690201146,3.34,174.31,174.29,3.32]
[1752690201340,3.34,174.41,174.3,4.13525467]
[1752690201549,3.34,174.41,174.24,181.17525467]
[1752690201550,3.34,174.4,174.34,3.32]
[1752690202747,5.7319,174.37,174.35,4.13525467]
[1752690202947,3.34,174.39,174.35,4.13525467]
[1752690203249,3.34,174.39,174.33,4.13525467]
[1752690203250,3.34,174.41,174.4,3.32]
[1752690203439,9.0704,174.41,174.4,3.32]
[1752690203639,9.0704,174.41,174.4,7.45525467]
[1752690204245,3.34,174.43,174.41,3.32]
[1752690205048,5.7304,174.42,174.41,3.32]
[1752690205548,188.4338,174.52,174.41,3.32]
[1752690205549,4.13525467,174.5,174.41,3.32]
[1752690205754,3.34,174.49,174.43,7.45525467]
[1752690206440,5.7295,174.44,174.43,7.45525467]
[1752690206645,9.0695,174.44,174.43,7.45525467]
[1752690207250,5.7304,174.42,174.33,4.13525467]
[1752690207553,4.13525467,174.48,174.41,4.13525467]
[1752690207849,3.34,174.49,174.42,3.32]
[1752690209148,5.7298,174.43,174.42,3.32]
[1752690210052,5.7295,174.44,174.41,4.13525467]
[1752690210253,3.34,174.44,174.43,3.32]
[1752690210749,3.34,174.44,174.43,7.45525467]
[1752690211149,9.0695,174.44,174.43,7.45525467]
[1752690212053,9.0701,174.42,174.41,7.45525467]
[1752690214156,5.7301,174.42,174.41,7.45525467]
[1752690214456,9.0701,174.42,174.41,3.32]
[1752690214654,5.7309,174.4,174.39,7.45525467]
[1752690215052,9.0709,174.4,174.39,7.45525467]
[1752690215659,5.7309,174.4,174.39,7.45525467]
[1752690215858,5.7309,174.4,174.39,3.32]
[1752690216056,5.7306,174.41,174.39,3.32]
[1752690216359,5.7306,174.41,174.4,7.45525467]
[1752690216748,5.7306,174.41,174.4,3.32]
[1752690217257,9.0706,174.41,174.4,3.32]
[1752690217453,5.7306,174.41,174.4,3.32]
[1752690217853,9.0706,174.41,174.4,3.32]
[1752690221262,9.0708,174.4,174.39,4.13525467]
[1752690221459,3.34,174.39,174.38,3.32]
[1752690221864,4.13525467,174.45,174.38,3.32]
[1752690222065,3.34,174.4,174.39,3.32]
[1752690222464,9.0705,174.41,174.4,3.32]
[1752690223557,5.7308,174.4,174.39,4.13525467]
[1752690223862,9.0708,174.4,174.37,4.13525467]
[1752690224062,3.34,174.4,174.38,3.32]
[1752690224461,9.0711,174.39,174.38,3.32]
[1752690224662,3.34,174.39,174.37,4.13525467]
[1752690224859,3.34,174.39,174.35,3.32]
[1752690225063,9.0721,174.36,174.35,3.32]
[1752690225569,5.7318,174.37,174.35,3.32]
[1752690227763,8.9418,174.37,174.35,3.32]
[1752690228869,5.7321,174.36,174.35,3.32]
[1752690229264,3.21,174.4,174.36,3.09]
[1752690229567,5.7323,174.36,174.35,3.09]
[1752690230664,5.7319,174.37,174.35,3.09]
[1752690230871,5.7319,174.37,174.36,7.22525467]
[1752690231169,8.9419,174.37,174.36,7.22525467]
[1752690232268,5.7315,174.38,174.36,7.22525467]
[1752690232472,8.9415,174.38,174.37,3.09]
[1752690234064,5.7312,174.39,174.37,3.09]
[1752690234470,5.7312,174.39,174.38,4.13525467]
[1752690234661,5.7312,174.39,174.38,7.22525467]
[1752690235061,5.7309,174.4,174.39,3.09]
[1752690235476,5.7305,174.41,174.39,3.09]
[1752690235772,5.7305,174.41,174.4,7.22525467]
[1752690236369,5.7305,174.41,174.4,3.09]
[1752690236569,5.7305,174.41,174.4,7.22525467]
[1752690236769,8.9405,174.41,174.38,4.13525467]
[1752690236975,3.21,174.41,174.38,7.22525467]
[1752690237469,8.9411,174.39,174.38,7.22525467]
[1752690242662,3.21,174.39,174.33,4.13525467]
[1752690242864,4.13525467,174.39,174.31,4.13525467]
[1752690243066,3.21,174.38,174.31,4.13525467]
[1752690243273,5.7329,174.34,174.32,3.09]
[1752690243468,8.9429,174.34,174.32,3.09]
[1752690243673,8.9429,174.34,174.33,4.13525467]
[1752690243876,5.7325,174.35,174.34,3.09]
[1752690244074,8.9425,174.35,174.34,3.09]
[1752690244272,3.21,174.35,174.34,3.09]
[1752690244672,8.9424,174.35,174.34,3.09]
[1752690245583,5.7327,174.34,174.33,4.13525467]
[1752690245875,5.7327,174.34,174.33,7.22525467]
[1752690245876,8.9427,174.34,174.33,7.22525467]
[1752690246978,3.21,174.34,174.33,7.22525467]
[1752690247775,4.13525467,174.41,174.33,12.95835467]
[1752690247982,3.21,174.4,174.34,3.09]
[1752690248982,8.9414,174.38,174.37,7.22525467]
[1752690249177,8.9414,174.38,174.36,3.09]
[1752690249178,3.21,174.37,174.36,3.09]
[1752690251479,8.9417,174.37,174.36,3.09]
[1752690251682,19.88965917,174.42,174.34,3.09]
[1752690251878,3.21,174.41,174.34,3.09]
[1752690252880,3.21,174.36,174.34,3.09]
[1752690253288,5.7319,174.37,174.34,3.09]
[1752690253580,3.21,174.36,174.34,3.09]
[1752690253777,3.21,174.35,174.34,3.09]
[1752690255984,3.21,174.35,174.33,7.22525467]
[1752690256283,3.21,174.32,174.31,3.09]
[1752690256883,3.21,174.32,174.31,8.8237]
[1752690257084,19.88965917,174.4,174.31,3.09]
[1752690257388,3.12,174.33,174.32,7.45525467]
[1752690257783,8.8531,174.33,174.32,7.45525467]
[1752690258683,8.8531,174.33,174.32,4.13525467]
[1752690258878,3.12,174.37,174.3,3.32]
[1752690259079,3.12,174.37,174.3,7.45525467]
[1752690259482,4.13525467,174.38,174.3,4.13525467]
[1752690259681,3.12,174.34,174.31,3.32]
[1752690260085,8.8537,174.32,174.31,3.32]
[1752690261591,3.12,174.38,174.31,3.32]
[1752690261881,12.84159805,174.35,174.32,4.13525467]
[1752690262093,8.8533,174.33,174.32,4.13525467]
[1752690262289,8.8533,174.33,174.32,1.17967865]
[1752690262584,3.12,174.32,174.31,3.32]
[1752690262783,8.8537,174.31,174.3,4.13525467]
[1752690263881,5.7344,174.29,174.28,7.45525467]
[1752690264087,8.8544,174.29,174.28,3.32]
[1752690264282,3.12,174.29,174.28,7.45525467]
[1752690264989,8.8538,174.31,174.29,3.32]
[1752690265382,8.8538,174.31,174.28,4.13525467]
[1752690265578,8.8538,174.31,174.3,3.32]
[1752690266989,8.8538,174.31,174.3,7.45525467]
[1752690269680,12.84159805,174.35,174.3,7.45525467]
[1752690269896,3.12,174.33,174.32,7.45525467]
[1752690270992,8.8533,174.33,174.32,7.45525467]
[1752690278802,8.8533,174.33,174.32,4.13525467]
[1752690280010,8.8533,174.33,174.32,7.45525467]
[1752690280398,3.12,174.33,174.32,7.45525467]
[1752690281102,8.8531,174.33,174.32,7.45525467]
[1752690285504,5.7325,174.35,174.32,9.86865467]
[1752690285701,15.96159805,174.36,174.35,3.32]
[1752690285904,3.12,174.36,174.35,0.95872211]
[1752690286106,15.7544045,174.42,174.35,0.95872211]
[1752690286306,521.74820684,174.46,174.33,4.13525467]
[1752690286307,15.7544045,174.43,174.39,4.13525467]
[1752690286505,15.7544045,174.44,174.39,4.13525467]
[1752690286707,5.7308,174.4,174.39,4.13525467]
[1752690287508,15.7544045,174.42,174.36,4.13525467]
[1752690287705,15.7544045,174.41,174.36,4.13525467]
[1752690287908,5.7317,174.37,174.36,4.13525467]
[1752690288108,9.0417,174.37,174.36,4.13525467]
[1752690289013,9.0417,174.37,174.36,7.50525467]
[1752690289510,3.31,174.37,174.36,7.50525467]
[1752690291809,3.31,174.37,174.36,3.37]
[1752690292008,3.31,174.37,174.36,7.50525467]
[1752690292214,3.31,174.38,174.36,4.13525467]
[1752690292414,3.31,174.38,174.37,3.37]
[1752690293718,9.0414,174.38,174.37,3.37]
[1752690294017,5.7314,174.38,174.37,3.37]
[1752690294418,9.0414,174.38,174.37,3.37]
[1752690295114,3.31,174.38,174.37,3.37]
[1752690295312,3.31,174.38,174.37,7.50525467]
[1752690298920,3.31,174.4,174.38,3.37]
[1752690299119,3.31,174.4,174.39,4.13525467]
[1752690299313,3.31,174.4,174.39,7.50525467]
[1752690299712,3.31,174.4,174.39,4.13525467]
[1752690299916,3.31,174.4,174.38,4.13525467]
[1752690300421,3.31,174.4,174.38,7.50525467]
[1752690300818,5.7311,174.39,174.38,7.50525467]
[1752690301121,9.0411,174.39,174.38,7.50525467]
[1752690302123,3.31,174.39,174.38,7.50525467]
[1752690302319,3.31,174.41,174.38,7.50525467]
[1752690302523,3.31,174.4,174.39,3.37]
[1752690302723,3.31,174.4,174.39,7.50525467]
[1752690303526,15.7544045,174.49,174.4,3.37]
[1752690303723,3.31,174.51,174.48,4.13551999]
[1752690303924,5.7269,174.52,174.5,4.13551999]
[1752690304122,22.35295217,174.54,174.46,4.13551999]
[1752690304330,4.13551999,174.52,174.44,4.13551999]
[1752690304521,3.31,174.45,174.42,4.13551999]
[1752690305125,3.31,174.44,174.42,4.13551999]
[1752690305422,3.31,174.46,174.42,9.86561999]
[1752690305728,3.31,174.45,174.42,9.86561999]
[1752690305923,5.7282,174.48,174.44,4.13551999]
[1752690306125,3.31,174.47,174.44,4.13551999]
[1752690306429,3.31,174.47,174.46,3.37]
[1752690306830,3.31,174.46,174.45,3.37]
[1752690307126,9.0388,174.46,174.44,4.13551999]
[1752690307332,3.31,174.45,174.44,7.50551999]
[1752690307724,3.31,174.45,174.44,8.93789077]
[1752690307926,3.31,174.45,174.39,3.37]
[1752690308126,5.7301,174.42,174.4,1.43242413]
[1752690308327,3.31,174.41,174.4,1.43242413]
[1752690308528,3.31,174.41,174.4,4.80242413]
[1752690308929,3.31,174.41,174.4,1.43242413]
[1752690309128,3.31,174.4,174.39,4.80242413]
[1752690309728,3.31,174.4,174.39,1.43242413]
[1752690310032,3.31,174.4,174.39,1.43271662]
[1752690310329,3.31,174.39,174.38,1.43271662]
[1752690310530,3.31,174.39,174.38,4.80271662]
[1752690310730,3.31,174.39,174.38,3.37]
[1752690310935,9.0411,174.39,174.38,3.37]
[1752690311131,3.31,174.43,174.37,4.13551999]
[1752690312225,3.31,174.38,174.37,4.13551999]
[1752690313031,3.31,174.38,174.32,7.50551999]
[1752690313530,5.7329,174.34,174.32,7.50551999]
[1752690313727,3.31,174.33,174.32,7.50551999]
[1752690314830,3.31,174.33,174.32,3.37]
[1752690315031,3.31,174.33,174.27,4.13551999]
[1752690315236,3.31,174.33,174.28,3.37]
[1752690315727,3.31,174.31,174.28,3.37]
[1752690315932,3.31,174.31,174.27,4.13551999]
[1752690316135,3.31,174.31,174.27,7.50551999]
[1752690316334,5.7344,174.29,174.27,7.50551999]
[1752690316533,3.31,174.31,174.24,3.37]
[1752690316927,3.34,174.31,174.25,3.37]
[1752690317533,3.34,174.27,174.25,3.37]
[1752690317929,5.7342,174.3,174.25,9.87101999]
[1752690318133,7.47551999,174.34,174.27,4.13551999]
[1752690318336,3.34,174.33,174.27,4.13551999]
[1752690318533,3.34,174.28,174.26,7.50551999]
[1752690319033,9.0747,174.28,174.26,4.13551999]
[1752690319238,3.34,174.27,174.26,4.13551999]
[1752690319937,3.34,174.26,174.24,4.13551999]
[1752690320135,3.34,174.25,174.24,7.50551999]
[1752690323439,3.34,174.34,174.25,3.37]
[1752690323636,3.34,174.34,174.27,4.13551999]
[1752690323841,5.7337,174.32,174.28,3.37]
[1752690324042,3.34,174.35,174.29,7.50551999]
[1752690324344,5.734,174.3,174.29,7.50551999]
[1752690324537,9.074,174.3,174.29,4.13551999]
[1752690324737,9.074,174.3,174.27,3.37]
[1752690324937,3.34,174.29,174.28,7.50551999]
[1752690325134,9.0738,174.31,174.28,7.50551999]
[1752690325333,3.34,174.38,174.3,7.50551999]
[1752690325533,3.34,174.38,174.35,3.37]
[1752690325738,5.725,174.42,174.35,3.37]
[1752690325939,3.34,174.37,174.36,3.37]
[1752690326142,3.34,174.4,174.34,7.50551999]
[1752690326547,9.072,174.37,174.36,4.13551999]
[1752690326743,3.34,174.37,174.36,7.50551999]
[1752690326944,9.0713,174.39,174.37,3.37]
[1752690327245,9.0713,174.39,174.38,4.13551999]
[1752690327839,3.34,174.39,174.38,7.50551999]
[1752690328335,9.0711,174.39,174.38,7.50551999]
[1752690328742,9.0711,174.39,174.38,4.13551999]
[1752690329837,5.7315,174.38,174.36,7.50551999]
[1752690330043,3.34,174.37,174.36,7.50551999]
[1752690330950,3.34,174.37,174.36,3.37]
[1752690331150,3.34,174.37,174.36,7.50551999]
[1752690331743,9.0712,174.39,174.36,7.50551999]
[1752690331945,5.7312,174.39,174.38,4.13551999]
[1752690332544,5.7314,174.38,174.37,3.37]
[1752690332745,9.0714,174.38,174.37,7.50551999]
[1752690333151,9.0714,174.38,174.37,4.13551999]
[1752690334456,3.34,174.38,174.37,7.50551999]
[1752690334655,9.0712,174.39,174.38,3.37]
[1752690334856,3.34,174.46,174.38,3.37]
[1752690335049,5.7303,174.42,174.41,4.13551999]
[1752690335243,3.34,174.42,174.36,5.732]
[1752690335551,3.34,174.43,174.41,3.37]
[1752690335747,3.34,174.45,174.42,4.13551999]
[1752690335953,3.34,174.45,174.43,3.37]
[1752690336153,9.0691,174.45,174.44,3.37]
[1752690336355,3.34,174.45,174.44,3.37]
[1752690336561,3.34,174.45,174.44,7.50551999]
[1752690337252,3.34,174.45,174.44,4.13551999]
[1752690338158,9.0691,174.45,174.44,4.13551999]
[1752690338659,5.7291,174.45,174.44,7.50551999]
[1752690338957,9.0691,174.45,174.44,4.13551999]
[1752690339164,3.34,174.43,174.42,3.37]
[1752690339355,3.34,174.43,174.42,7.50551999]
[1752690340060,5.7297,174.44,174.42,4.13551999]
[1752690340258,9.0697,174.44,174.43,3.37]